bitfinex/quotes_ETHUSD_20260109
["timestamp","ask_amount","ask_price","bid_price","bid_amount"]
[1767970493074,0.95915137,3073.6,3071.9,3.25730634]
[1767970493274,0.253,3073.5,3071.9,6.51262064]
[1767970493886,0.00080176,3074.0,3072.3,6.50978094]
[1767970494275,0.00080176,3074.0,3072.4,0.95114001]
[1767970494474,0.00080176,3074.0,3072.5,1.07158114]
[1767970495294,0.00080176,3074.0,3072.6,0.95114001]
[1767970495902,0.00080176,3074.0,3072.8,0.95114001]
[1767970496100,0.00080176,3074.0,3072.9,1.20614001]
[1767970497085,0.00080176,3074.0,3073.0,0.95114001]
[1767970497719,0.00080176,3074.0,3072.9,0.255]
[1767970497917,0.00080176,3074.0,3072.9,1.00184003]
[1767970498121,0.00080176,3074.0,3073.1,6.50808628]
[1767970498424,0.00080176,3074.0,3073.1,3.25404314]
[1767970498589,0.00080176,3074.0,3072.5,2.02272115]
[1767970498590,0.00080176,3074.0,3073.0,3.25411139]
[1767970498917,0.00080176,3074.0,3073.0,3.25413175]
[1767970499120,0.00080176,3074.0,3073.1,0.6508299]
[1767970499320,0.00080176,3074.0,3073.0,3.2541315]
[1767970499524,0.00080176,3074.0,3072.9,3.25422235]
[1767970499828,0.00080176,3074.0,3072.6,0.255]
[1767970500225,0.00080176,3074.0,3072.7,3.25446675]
[1767970501064,0.00080176,3074.0,3072.6,0.255]
[1767970501324,0.95915137,3073.9,3072.2,0.0008096]
[1767970501826,0.001,3073.7,3072.7,0.95114001]
[1767970502031,0.00080176,3074.0,3072.8,6.50872168]
[1767970502343,0.00080176,3074.0,3072.9,0.90587217]
[1767970502697,0.95995313,3074.0,3072.9,0.65087217]
[1767970502921,0.95995313,3074.0,3072.7,6.50891435]
[1767970503331,0.96063224,3073.8,3072.2,0.0008096]
[1767970503824,0.96063224,3073.6,3072.2,0.0008096]
[1767970504046,6.50745102,3073.4,3072.2,0.0008096]
[1767970504243,0.77210833,3073.3,3072.2,0.0008096]
[1767970504451,0.96063224,3073.2,3071.9,0.002]
[1767970504736,0.0008096,3072.6,3071.9,0.002]
[1767970505914,0.96144184,3072.6,3071.5,0.002]
[1767970506237,0.96063224,3072.4,3071.5,0.002]
[1767970506550,0.42153108,3072.3,3071.5,0.002]
[1767970506711,0.96063224,3072.4,3071.5,0.002]
[1767970508133,0.96063224,3072.2,3071.5,0.002]
[1767970508534,0.0008096,3072.6,3071.5,0.002]
[1767970508729,0.253,3072.5,3071.5,0.002]
[1767970509048,1.21363224,3072.5,3071.5,0.002]
[1767970509219,1.73299932,3072.4,3071.5,0.002]
[1767970509613,0.96063224,3072.3,3071.5,0.002]
[1767970510462,7.47043092,3072.3,3071.5,0.002]
[1767970510659,0.96063224,3072.2,3071.5,0.002]
[1767970513264,0.253,3072.4,3071.5,0.002]
[1767970513466,3.50786794,3072.4,3071.5,0.002]
[1767970513733,0.67626424,3072.3,3071.5,0.002]
[1767970513933,0.96063224,3072.4,3071.8,0.002]
[1767970514129,1.21363224,3072.4,3071.8,0.002]
[1767970514364,0.96163224,3072.3,3071.8,0.002]
[1767970514661,3.25499641,3072.2,3071.8,0.002]
[1767970515250,3.25499641,3072.2,3071.5,0.002]
[1767970515251,8.24307177,3072.2,3071.5,0.002]
[1767970515834,8.24307177,3072.2,3071.1,0.00080288]
[1767970515835,1.00629583,3072.1,3071.1,0.00080288]
[1767970516035,0.96063224,3071.8,3070.3,0.002]
[1767970516273,0.96063224,3071.8,3070.3,3.25899903]
[1767970516274,0.253,3071.7,3070.3,3.25899903]
[1767970516573,0.96063224,3071.6,3070.3,0.002]
[1767970516735,4.21637047,3071.5,3070.3,0.32820154]
[1767970516936,0.96063224,3071.4,3070.3,0.002]
[1767970518046,3.25573823,3071.5,3070.3,0.002]
[1767970518578,0.77244671,3072.2,3070.4,0.94918624]
[1767970518579,4.02746554,3072.2,3070.4,0.94918624]
[1767970518869,4.21565107,3072.2,3070.5,10.02539568]
[1767970519046,3.25599042,3072.3,3070.5,10.97458192]
[1767970519245,3.25599042,3072.3,3070.6,0.94918624]
[1767970519746,0.001,3072.3,3070.6,0.94918624]
[1767970520701,0.001,3072.3,3070.7,10.71894556]
[1767970520866,0.001,3072.3,3070.8,1.07189456]
[1767970521266,0.001,3072.3,3070.9,0.255]
[1767970521475,0.001,3072.3,3071.0,0.94918624]
[1767970521801,0.96163224,3072.3,3071.0,0.255]
[1767970522000,0.001,3072.3,3071.1,0.94918624]
[1767970522166,0.001,3072.3,3071.0,0.255]
[1767970522366,0.001,3072.3,3071.1,0.255]
[1767970522790,0.001,3072.3,3071.2,6.51211252]
[1767970522993,0.001,3072.3,3071.3,0.67671125]
[1767970523774,0.001,3072.3,3071.3,0.93171125]
[1767970524198,3.25436521,3072.8,3071.3,0.93171125]
[1767970524199,0.96063224,3073.6,3072.2,0.0008104]
[1767970524526,0.96063224,3073.6,3072.2,0.2558104]
[1767970524892,0.00080288,3073.7,3072.3,13.01956188]
[1767970525095,0.00080176,3074.0,3072.5,9.3323567]
[1767970525341,0.00080176,3074.0,3072.6,0.94918624]
[1767970525629,3.25391713,3074.0,3072.7,0.255]
[1767970525829,0.00080176,3074.0,3072.7,0.255]
[1767970526644,0.00080176,3074.0,3072.8,0.255]
[1767970526995,0.001,3073.3,3072.9,6.50850986]
[1767970527327,0.00080176,3074.0,3073.0,0.67635099]
[1767970527837,0.0008024,3074.6,3073.1,0.94918624]
[1767970527997,0.0008024,3074.6,3073.3,0.94998816]
[1767970528189,3.253258,3074.6,3073.3,0.94998816]
[1767970528395,0.96063224,3074.5,3073.3,0.00080192]
[1767970528618,1.7072714,3074.4,3073.3,0.00080192]
[1767970528929,0.74663916,3074.4,3073.3,6.50846468]
[1767970529134,0.04566359,3074.5,3073.3,6.50846468]
[1767970529300,0.0008024,3074.6,3073.3,6.50846468]
[1767970529721,3.25326082,3074.6,3073.3,3.2546333]
[1767970530025,0.0008024,3074.6,3073.4,0.255]
[1767970530228,0.0008024,3074.6,3073.5,0.255]
[1767970530229,6.50572848,3074.6,3073.5,0.255]
[1767970530529,0.96063224,3074.5,3073.6,0.255]
[1767970530904,3.25266718,3074.4,3073.4,0.255]
[1767970531319,4.213217,3074.5,3073.4,0.255]
[1767970531696,0.96063224,3074.4,3073.3,0.00080192]
[1767970532096,3.90846874,3074.6,3073.3,0.00080192]
[1767970532430,0.96063224,3074.4,3073.3,0.00080192]
[1767970533118,4.21331873,3074.4,3073.3,0.00080192]
[1767970533325,7.46600522,3074.4,3073.3,0.00080192]
[1767970533522,0.98508852,3074.3,3073.3,0.00080192]
[1767970533904,3.64344155,3074.5,3073.3,0.00080192]
[1767970534099,0.3644244,3074.4,3073.3,0.67718992]
[1767970535337,3.25277298,3074.3,3073.3,0.67718992]
[1767970535538,3.25277298,3074.3,3073.3,0.00080192]
[1767970535739,7.49063448,3074.3,3073.3,0.00080192]
[1767970535905,0.98508852,3074.2,3073.3,0.00080192]
[1767970536235,0.00080192,3074.0,3072.6,3.25449106]
[1767970536394,0.00080192,3074.0,3072.7,3.60531302]
[1767970536599,0.98589044,3074.0,3072.6,0.255]
[1767970537239,0.98589044,3074.0,3072.3,0.255]
[1767970537450,6.50639252,3073.9,3072.3,0.255]
[1767970537618,6.50639252,3073.9,3072.4,3.25477762]
[1767970537619,3.25319626,3073.9,3072.4,3.25477762]
[1767970537941,6.50639252,3073.9,3072.4,6.50956215]
[1767970538146,0.7492283,3073.8,3072.5,0.67645622]
[1767970538652,0.7492283,3073.8,3072.5,1.66304132]
[1767970539003,3.25389542,3074.0,3072.5,1.66304132]
[1767970539231,6.50698892,3074.0,3072.5,1.66304132]
[1767970539568,0.001,3073.9,3072.6,6.50914534]
[1767970539865,0.001,3073.9,3072.7,1.01912976]
[1767970540065,0.001,3073.9,3072.8,0.2669179]
[1767970540258,0.001,3073.9,3072.9,0.9865851]
[1767970540436,0.001,3073.9,3073.0,0.99850639]
[1767970540935,0.001,3073.9,3073.0,0.9865851]
[1767970541257,0.001,3073.9,3073.2,3.25393726]
[1767970541573,0.001,3073.9,3073.3,0.255]
[1767970542188,0.001,3073.9,3072.7,3.25438328]
[1767970542500,0.001,3073.9,3072.7,3.2544451]
[1767970542647,0.001,3073.9,3072.5,0.67645622]
[1767970542832,1.03175211,3073.9,3072.2,0.0008104]
[1767970543032,1.03175211,3073.9,3072.3,0.255]
[1767970543343,6.50681588,3073.7,3072.3,3.50984653]
[1767970543852,3.25340794,3073.7,3072.3,6.764737]
[1767970544060,3.70265759,3073.7,3072.4,1.00204709]
[1767970544361,3.25421858,3073.9,3072.4,1.98863219]
[1767970544665,0.001,3073.9,3072.5,0.255]
[1767970545160,3.25420313,3073.9,3072.4,1.00204709]
[1767970545365,0.65081242,3073.8,3072.6,0.255]
[1767970545776,3.25340794,3073.7,3072.6,3.25457267]
[1767970546562,6.50681588,3073.7,3072.5,3.50963081]
[1767970546733,0.71576283,3073.6,3072.5,4.02972352]
[1767970546940,0.71576283,3073.6,3072.6,0.255]
[1767970547140,3.25340794,3073.7,3072.6,0.255]
[1767970547673,0.001,3073.9,3072.6,1.27413082]
[1767970547834,0.001,3073.9,3072.8,0.97943797]
[1767970548859,0.001,3073.9,3072.9,0.255]
[1767970549965,0.001,3073.9,3073.0,3.25414904]
[1767970550169,0.001,3073.9,3073.0,3.60506394]
[1767970550740,0.001,3073.9,3073.0,6.85921298]
[1767970550969,0.001,3073.9,3073.1,0.9915557]
[1767970551545,0.001,3073.9,3073.1,0.97943797]
[1767970551745,0.001,3073.9,3073.2,0.255]
[1767970551951,0.001,3073.9,3073.3,6.50766276]
[1767970552154,0.001,3073.9,3073.4,0.67626628]
[1767970552383,0.001,3073.9,3073.5,0.255]
[1767970552545,0.001,3073.9,3073.4,0.67626628]
[1767970552743,0.001,3073.9,3073.3,0.002]
[1767970553574,0.001,3073.9,3073.3,0.03453831]
[1767970553775,0.98514439,3073.9,3073.0,0.002]
[1767970553984,0.03253846,3073.8,3072.4,3.25475682]
[1767970554279,6.50747346,3073.9,3072.5,0.42341948]
[1767970554480,6.50747346,3073.9,3072.6,0.255]
[1767970555182,3.25423673,3073.9,3072.6,0.255]
[1767970555384,3.2542093,3073.9,3072.4,6.50954135]
[1767970555550,3.2542093,3073.9,3072.7,0.255]
[1767970555751,0.001,3073.9,3072.7,0.255]
[1767970556089,0.001,3073.9,3072.8,6.50872168]
[1767970556382,0.001,3073.9,3072.9,1.65581014]
[1767970556685,0.001,3073.9,3073.0,0.97943797]
[1767970557380,0.001,3073.9,3073.2,0.97943797]
[1767970557568,0.001,3073.9,3073.3,0.255]
[1767970558084,0.001,3073.9,3073.5,3.25361965]
[1767970559185,0.001,3075.3,3073.7,0.97943797]
[1767970559890,0.00080224,3075.5,3074.1,0.97943797]
[1767970560053,0.00081283,3075.7,3074.5,0.97943797]
[1767970560458,0.00081283,3075.7,3074.6,0.255]
[1767970560661,0.00081283,3075.7,3074.7,0.255]
[1767970561385,0.00081283,3075.7,3074.8,0.255]
[1767970561386,0.98414439,3075.6,3074.8,0.255]
[1767970561584,0.00081283,3075.7,3074.8,0.255]
[1767970561759,0.00081283,3075.7,3074.6,0.67603344]
[1767970562075,7.48754198,3075.7,3074.2,0.00080256]
[1767970562255,0.98495722,3075.7,3074.3,0.255]
[1767970562459,0.00081283,3075.7,3074.2,0.00080256]
[1767970562660,0.00081283,3075.7,3074.3,0.255]
[1767970563360,0.00081283,3075.7,3074.4,0.255]
[1767970564179,0.00081283,3075.7,3074.5,6.50512278]
[1767970564803,0.00081283,3075.7,3074.6,0.255]
[1767970565718,0.00081283,3075.7,3074.6,1.22308693]
[1767970565871,0.00081283,3075.7,3074.7,0.96808693]
[1767970566207,0.00081283,3075.7,3074.8,9.75673212]
[1767970566525,10.32,3076.7,3075.3,0.00081364]
[1767970566815,0.00080176,3077.1,3075.4,1.22308693]
[1767970567278,0.00080176,3077.1,3075.7,0.96808693]
[1767970567790,0.99611127,3077.0,3075.3,0.00081364]
[1767970567990,1.74576804,3076.9,3075.6,0.255]
[1767970568191,1.74576804,3076.9,3075.7,3.25129238]
[1767970568490,0.99611127,3076.7,3075.6,6.50277893]
[1767970568991,0.99611127,3077.0,3075.6,6.50277893]
[1767970569165,0.99611127,3077.0,3075.7,0.255]
[1767970569377,0.00080176,3077.1,3075.7,0.255]
[1767970569598,0.00080176,3077.1,3075.8,0.255]
[1767970569599,0.99611127,3077.0,3075.8,0.255]
[1767970569769,6.85801029,3077.1,3075.3,0.00081364]
[1767970569770,0.99611127,3076.8,3075.3,0.00081364]
[1767970570204,4.24627187,3076.8,3075.3,0.00081364]
[1767970570364,0.99611127,3076.7,3075.3,0.00081364]
[1767970570570,0.74964325,3076.6,3075.3,0.00081364]
[1767970571910,0.00080176,3077.1,3075.3,0.96890057]
[1767970572128,0.99611127,3077.0,3075.3,0.00081364]
[1767970572287,9.75035137,3077.1,3075.3,0.00081364]
[1767970572288,0.99611127,3076.8,3075.3,0.00081364]
[1767970572492,0.99611127,3076.6,3075.3,0.00081364]
[1767970572790,0.99611127,3076.4,3075.3,0.00081364]
[1767970572993,0.07820205,3076.5,3075.3,0.00081364]
[1767970572994,0.99611127,3076.2,3075.3,0.00081364]
[1767970573298,0.07820205,3076.3,3074.9,0.00080288]
[1767970573299,0.00081364,3075.7,3074.9,0.00080288]
[1767970574808,0.00081364,3075.7,3074.2,0.25580256]
[1767970575028,0.00081364,3075.7,3074.2,0.00080256]
[1767970575029,0.99692491,3075.7,3074.2,0.00080256]
[1767970575188,1.02946337,3075.7,3074.2,0.00080256]
[1767970575813,0.99692491,3075.7,3074.2,0.01682532]
[1767970576105,0.99692491,3075.7,3074.2,0.00080256]
[1767970576296,0.99692491,3075.7,3074.2,3.2536773]
[1767970576497,3.2513981,3075.6,3074.3,0.32536773]
[1767970576846,0.99611127,3075.5,3074.3,0.32536773]
[1767970576972,0.99611127,3075.5,3074.2,0.00080256]
[1767970577675,1.04177486,3075.5,3074.2,0.00080256]
[1767970578118,0.99611127,3075.2,3073.6,0.00080264]
[1767970578272,0.99611127,3075.0,3073.6,0.00080264]
[1767970578472,3.25213828,3074.9,3073.6,0.00080264]
[1767970578717,0.42482495,3074.8,3073.6,0.32625546]
[1767970578874,0.99611127,3075.4,3073.7,0.96808693]
[1767970579075,0.00080256,3075.5,3074.6,0.002]
[1767970579503,0.00081364,3075.7,3074.6,0.002]
[1767970579707,6.50341441,3075.7,3074.6,0.002]
[1767970580005,0.99611127,3075.3,3074.3,0.002]
[1767970580175,1.04177486,3075.2,3074.3,0.002]
[1767970580502,1.04177486,3075.2,3073.6,0.32625546]
[1767970580503,1.04177486,3075.0,3073.6,0.00080264]
[1767970580805,0.99611127,3074.8,3073.6,0.00080264]
[1767970581004,0.00080264,3074.6,3073.3,0.00280208]
[1767970581392,1.24991391,3074.6,3073.3,0.00280208]
[1767970582102,0.99611127,3074.5,3073.3,0.00280208]
[1767970582515,0.99611127,3074.5,3072.2,0.0008104]
[1767970582516,0.99611127,3073.5,3072.2,0.0008104]
[1767970582690,0.253,3073.4,3072.2,0.0008104]
[1767970583379,1.04177486,3073.3,3072.2,0.0008104]
[1767970583709,0.0008104,3072.6,3071.8,0.00080336]
[1767970584313,0.99611127,3072.4,3071.0,0.16979765]
[1767970584513,7.32491293,3072.3,3071.0,0.16979765]
[1767970584710,7.32491293,3072.3,3070.9,0.002]
[1767970584711,10.5798034,3072.3,3070.9,0.002]
[1767970585028,10.5798034,3072.3,3070.2,0.25780112]
[1767970585029,1.04177486,3071.4,3070.2,0.00280112]
[1767970585176,1.04177486,3071.4,3070.0,0.0008012]
[1767970585177,0.00080112,3070.9,3070.0,0.0008012]
[1767970585382,0.40304899,3070.9,3070.0,0.0008012]
[1767970585577,0.04566359,3070.7,3069.4,0.002]
[1767970585777,0.253,3070.6,3069.4,0.002]
[1767970586018,0.99611127,3070.5,3069.4,0.002]
[1767970586405,0.253,3070.4,3069.4,0.002]
[1767970586588,3.5099321,3070.4,3069.4,0.002]
[1767970586794,6.7668642,3070.4,3069.4,0.002]
[1767970586991,7.44355062,3070.4,3069.4,0.002]
[1767970587212,0.92968642,3070.4,3069.4,0.002]
[1767970587525,6.51296078,3070.8,3069.4,0.002]
[1767970587685,0.253,3070.7,3069.4,0.002]
[1767970588942,3.2566925,3070.6,3069.4,0.002]
[1767970589140,6.513385,3070.6,3069.4,0.002]
[1767970590524,0.253,3070.8,3069.4,0.002]
[1767970590705,0.67665874,3070.7,3069.4,0.002]
[1767970591113,3.2566925,3070.6,3069.4,0.002]
[1767970591542,3.93327649,3070.7,3069.4,0.002]
[1767970591745,7.18989424,3070.7,3069.7,0.002]
[1767970592542,10.44651199,3070.7,3069.7,0.002]
[1767970592749,2.1656736,3070.6,3069.7,0.002]
[1767970592911,1.16956233,3070.6,3069.7,0.002]
[1767970593112,3.25721739,3070.9,3069.7,0.002]
[1767970593113,0.25480112,3070.9,3069.7,0.002]
[1767970594032,0.00080112,3070.9,3069.7,0.002]
[1767970594238,0.00080112,3070.9,3069.7,0.95656768]
[1767970595314,0.00080112,3070.9,3069.8,10.72719128]
[1767970595533,0.00080112,3070.9,3069.9,2.02748681]
[1767970595943,0.00080112,3070.9,3070.0,0.95456768]
[1767970596154,6.5427432,3072.1,3070.2,0.00080128]
[1767970596356,6.51020474,3072.1,3070.2,0.00080128]
[1767970596663,0.80449865,3072.0,3070.2,0.00080128]
[1767970596834,0.95539717,3071.9,3070.2,0.00080128]
[1767970597445,0.95620037,3072.4,3070.2,0.95536896]
[1767970597731,0.254,3072.3,3070.2,0.95536896]
[1767970598735,3.25562653,3072.4,3070.2,0.95536896]
[1767970599055,4.16074065,3072.4,3070.4,0.95456768]
[1767970599254,0.0008032,3072.4,3070.8,0.95456768]
[1767970599457,0.0008032,3072.4,3070.7,13.02634576]
[1767970599458,0.0008032,3072.4,3071.0,0.95456768]
[1767970599665,0.0008032,3072.4,3070.7,9.76975932]
[1767970599867,0.0008032,3072.4,3071.1,0.255]
[1767970600435,0.0008032,3072.4,3070.7,7.46774056]
[1767970600637,0.0008032,3072.4,3070.8,1.00177406]
[1767970601434,0.0008032,3072.4,3070.9,6.5127487]
[1767970601641,0.0008032,3072.4,3070.9,9.76912305]
[1767970602088,0.0008032,3072.4,3070.9,10.72369073]
[1767970602251,0.0008032,3072.4,3071.0,0.95456768]
[1767970602572,0.0008032,3072.4,3070.9,13.0254974]
[1767970602573,0.0008032,3072.4,3071.2,0.95456768]
[1767970603381,0.0008032,3072.4,3071.3,6.51190048]
[1767970603538,0.0008032,3072.4,3071.3,3.51095024]
[1767970603738,0.0008032,3072.4,3071.0,0.255]
[1767970604043,0.0008032,3072.4,3071.2,3.25598691]
[1767970604374,0.0008032,3072.4,3071.3,1.60577593]
[1767970604573,0.001,3072.1,3071.3,1.60577593]
[1767970604938,0.001,3072.1,3071.3,0.65120825]
[1767970605548,0.001,3072.1,3070.8,0.255]
[1767970606178,0.001,3072.1,3071.3,10.72241454]
[1767970606364,0.001,3072.1,3071.3,7.4664643]
[1767970606875,0.0008032,3072.4,3071.8,0.95456768]
[1767970607179,0.254,3073.6,3072.2,0.00081121]
[1767970607349,0.7003656,3073.6,3072.2,0.00081121]
[1767970607556,3.25361965,3073.5,3072.2,0.00081121]
[1767970608684,6.76105192,3073.6,3072.2,0.00081121]
[1767970608857,3.50752596,3073.6,3072.2,0.00081121]
[1767970609042,0.254,3073.6,3072.2,0.00081121]
[1767970609243,0.254,3073.6,3072.2,0.93627189]
[1767970609468,0.254,3073.6,3072.3,9.76467141]
[1767970609743,0.254,3073.6,3072.4,1.07009433]
[1767970610182,3.50756401,3073.6,3072.4,1.07009433]
[1767970610743,6.50712802,3073.6,3072.4,1.07009433]
[1767970610944,3.25422809,3073.7,3072.3,6.50978094]
[1767970611141,6.50765282,3073.7,3072.3,6.50978094]
[1767970611381,0.98544354,3073.6,3072.2,3.5107948]
[1767970611554,6.5072393,3073.5,3072.2,3.5107948]
[1767970611754,0.03253846,3073.4,3072.2,3.2557948]
[1767970611955,0.65397778,3073.3,3072.2,3.2557948]
[1767970612278,0.65397778,3073.3,3072.2,3.25578335]
[1767970613451,0.65397778,3073.3,3072.2,0.00081121]
[1767970613452,3.25393726,3073.2,3072.2,0.00081121]
[1767970613657,0.65397778,3073.3,3072.2,0.00081121]
[1767970613658,3.9078367,3073.3,3072.2,0.00081121]
[1767970613989,7.16169562,3073.3,3072.2,0.00081121]
[1767970614158,0.98544354,3073.1,3072.2,0.00081121]
[1767970614495,0.00081121,3072.6,3071.1,1.1912642]
[1767970614694,0.98625475,3072.6,3071.1,0.00080352]
[1767970614862,0.98625475,3072.6,3071.4,3.25576401]
[1767970615060,1.017982,3072.5,3071.1,3.25687932]
[1767970615299,1.017982,3072.5,3071.1,0.00080352]
[1767970615500,0.98544354,3071.9,3071.1,0.00080352]
[1767970615803,0.254,3071.8,3071.1,0.00080352]
[1767970616160,0.98544354,3071.9,3071.1,0.00080352]
[1767970617561,6.51084054,3071.8,3070.2,6.5169523]
[1767970617760,0.74962841,3071.7,3070.3,0.67719523]
[1767970618294,0.98544354,3071.6,3070.2,0.00280128]
[1767970619260,0.74962841,3071.7,3070.2,0.00280128]
[1767970619697,6.51126448,3071.6,3070.2,0.00280128]
[1767970620285,0.74962841,3071.7,3070.2,0.00280128]
[1767970620490,3.50925619,3072.0,3070.3,0.96803077]
[1767970620708,6.76451238,3072.0,3070.3,0.93546068]
[1767970621669,6.76451238,3072.0,3070.4,6.51380926]
[1767970622427,3.50925619,3072.0,3070.4,9.77071389]
[1767970622581,3.2549738,3072.3,3070.5,0.93546068]
[1767970622789,3.2549738,3072.3,3070.6,2.30498964]
[1767970623088,3.2549738,3072.3,3070.7,0.90868172]
[1767970623278,3.2549738,3072.3,3070.8,0.255]
[1767970623476,0.25480352,3072.4,3070.8,1.16368172]
[1767970623786,0.25480352,3072.4,3071.0,10.67748665]
[1767970623787,0.00080352,3072.4,3071.0,10.67748665]
[1767970624101,0.00080352,3072.4,3071.2,0.90868172]
[1767970625395,0.00080352,3072.4,3071.3,0.255]
[1767970625766,3.97017598,3073.2,3071.3,0.255]
[1767970625767,0.00080336,3073.7,3071.9,0.90868172]
[1767970625965,0.00080336,3073.7,3072.2,0.90949374]
[1767970626796,0.00080336,3073.7,3072.3,0.255]
[1767970627009,3.25426482,3073.7,3072.2,0.00081202]
[1767970627208,0.03253846,3073.6,3072.4,0.255]
[1767970627409,3.58294515,3073.7,3072.4,0.255]
[1767970627597,6.86894507,3073.7,3072.4,0.255]
[1767970627799,6.83640661,3073.7,3072.2,0.00081202]
[1767970627998,0.32948369,3073.7,3072.4,6.50952453]
[1767970628197,3.58294078,3073.7,3072.5,0.67645245]
[1767970628400,0.97014317,3073.6,3072.2,0.00081202]
[1767970628599,1.00268163,3073.6,3072.2,0.00081202]
[1767970628800,0.97014317,3073.6,3072.4,3.25477163]
[1767970629016,1.00268163,3073.6,3072.4,3.25477956]
[1767970629219,0.97014317,3073.6,3072.2,0.00081202]
[1767970629411,0.7806541,3073.5,3072.4,3.25473974]
[1767970629594,1.75079727,3073.5,3072.2,0.00081202]
[1767970629796,0.7806541,3073.5,3072.2,0.00081202]
[1767970630000,3.25351379,3073.6,3072.2,0.00081202]
[1767970630208,0.00080336,3073.7,3072.2,0.00081202]
[1767970630504,3.25423124,3073.7,3072.2,0.00081202]
[1767970630912,0.00080336,3073.7,3072.3,0.255]
[1767970631309,0.00080336,3073.7,3072.4,0.90868172]
[1767970631626,0.00080336,3073.7,3072.4,0.255]
[1767970631916,0.00080336,3073.7,3072.5,6.5093572]
[1767970632121,0.00080336,3073.7,3072.6,0.67643572]
[1767970632719,0.00080336,3073.7,3072.4,6.76453472]
[1767970634725,0.00080336,3073.7,3072.4,6.50953472]
[1767970634922,0.00080336,3073.7,3072.4,13.01910378]
[1767970635124,0.00080336,3073.7,3072.5,0.90868172]
[1767970636023,0.97094653,3073.7,3072.4,6.50953472]
[1767970636225,0.97094653,3073.7,3072.4,7.16056939]
[1767970636425,4.2237308,3073.6,3072.4,3.90578486]
[1767970636727,0.00080336,3073.7,3072.5,0.255]
[1767970637601,3.25423005,3073.7,3072.4,7.16056939]
[1767970637802,6.50765674,3073.7,3072.4,3.90578486]
[1767970637995,0.65076567,3073.6,3072.5,0.255]
[1767970638197,0.65076567,3073.6,3072.6,6.50914534]
[1767970638406,3.90428022,3073.6,3072.6,3.25457267]
[1767970638807,0.65076567,3073.6,3072.6,3.25457267]
[1767970639024,0.65076567,3073.6,3072.6,6.50914534]
[1767970639328,0.65076567,3073.6,3072.6,3.99609067]
[1767970639500,3.25354254,3073.6,3072.6,0.741518]
[1767970639830,4.22439795,3073.7,3072.5,6.76430785]
[1767970641324,4.22435756,3073.7,3072.5,6.76430785]
[1767970641531,7.47776859,3073.7,3072.5,3.25462925]
[1767970641736,7.47776859,3073.7,3072.5,3.50962925]
[1767970641902,7.47776859,3073.7,3072.5,6.76430785]
[1767970642229,0.97014317,3073.6,3072.2,0.00081202]
[1767970642427,0.97014317,3073.2,3072.2,0.00081202]
[1767970645413,4.2241048,3073.2,3072.2,0.00081202]
[1767970646634,0.001,3073.4,3072.2,0.00081202]
[1767970646635,0.97014317,3072.9,3072.2,0.00081202]
[1767970646834,1.39257239,3072.8,3072.2,0.00081202]
[1767970647334,0.00081202,3072.6,3071.5,0.002]
[1767970649332,0.97095519,3072.6,3071.5,0.002]
[1767970650745,6.50978094,3072.3,3071.5,0.002]
[1767970650935,7.73292411,3072.3,3071.5,0.002]
[1767970651124,0.77329241,3072.2,3071.5,0.002]
[1767970651436,0.253,3072.3,3071.5,0.002]
[1767970651732,0.00081202,3072.6,3071.6,0.90868172]
[1767970653051,0.00081202,3072.6,3071.7,3.25552625]
[1767970653229,0.00081202,3072.6,3071.7,6.5110525]
[1767970653434,0.00081202,3072.6,3071.8,0.67660525]
[1767970654444,0.90237956,3072.6,3071.6,0.255]
[1767970654863,0.90156754,3072.4,3071.5,0.002]
[1767970655038,0.254,3072.5,3071.5,0.002]
[1767970655039,7.41134848,3072.3,3071.5,0.002]
[1767970655360,7.41134848,3072.3,3071.9,0.002]
[1767970655672,4.15645801,3072.3,3071.5,0.002]
[1767970655872,0.4156458,3072.2,3071.5,0.002]
[1767970656024,1.31721334,3072.2,3071.5,0.002]
[1767970656531,0.90156754,3072.1,3071.5,0.002]
[1767970656724,0.90156754,3072.1,3071.1,0.00080384]
[1767970656965,0.90156754,3071.9,3071.1,0.00080384]
[1767970657269,0.99519842,3071.8,3071.1,0.00080384]
[1767970658361,0.254,3071.9,3071.1,0.00080384]
[1767970658545,6.51030076,3072.1,3071.1,0.00080384]
[1767970659158,3.25515038,3072.1,3071.1,0.00080384]
[1767970659455,6.51030076,3072.1,3071.1,0.00080384]
[1767970659660,3.25515038,3072.1,3071.1,0.00080384]
[1767970659841,4.06328847,3072.1,3071.1,0.00080384]
[1767970660157,7.31843885,3072.1,3071.1,0.00080384]
[1767970660859,0.90156754,3072.0,3071.1,0.00080384]
[1767970661028,0.90156754,3071.8,3071.1,0.00080384]
[1767970661556,6.5110525,3071.7,3070.5,3.25679856]
[1767970661761,0.741262,3071.6,3070.5,3.25679856]
[1767970662061,0.741262,3071.6,3070.5,6.51359712]
[1767970662457,0.741262,3071.6,3070.5,3.25679856]
[1767970662651,0.741262,3071.6,3070.4,3.51182466]
[1767970662652,0.741262,3071.6,3070.4,3.25687673]
[1767970663037,1.64282954,3071.6,3070.3,0.002]
[1767970663277,1.71695574,3071.5,3070.3,0.002]
[1767970663437,1.71695574,3071.5,3070.4,3.25689156]
[1767970663631,3.25584424,3071.4,3070.3,0.002]
[1767970663829,6.51168848,3071.4,3070.3,0.002]
[1767970664052,7.41325602,3071.4,3070.3,0.002]
[1767970664242,7.41325602,3071.4,3070.4,0.32618886]
[1767970664449,3.25584424,3071.4,3070.4,0.32618886]
[1767970664859,0.254,3071.8,3070.4,1.30131542]
[1767970665035,3.25558158,3071.7,3070.4,1.30131542]
[1767970665562,0.90156754,3071.6,3070.4,3.58308493]
[1767970665768,1.2525257,3071.6,3070.4,3.83806758]
[1767970666060,1.2525257,3071.6,3070.4,7.09497221]
[1767970666453,3.25558158,3071.7,3070.4,8.07009877]
[1767970667072,3.25507729,3072.2,3070.4,8.07009877]
[1767970667073,0.00080384,3072.4,3070.5,0.97512656]
[1767970667390,0.00080384,3072.4,3070.8,0.97512656]
[1767970667535,0.00080384,3072.4,3071.2,0.97512656]
[1767970667741,0.00080384,3072.4,3071.4,0.97512656]
[1767970668270,0.001,3071.9,3071.4,0.97512656]
[1767970668471,0.001,3071.9,3071.5,0.255]
[1767970668775,0.001,3071.9,3071.1,6.51232456]
[1767970669068,0.001,3071.9,3071.2,0.65123246]
[1767970669848,0.001,3071.9,3071.2,3.90727502]
[1767970670049,0.001,3071.9,3071.2,0.65123246]
[1767970670456,0.03353846,3071.9,3070.7,0.255]